fUSD/lending_fUSD_20250823
["ID","MTS","AMOUNT","RATE_DAILY","PERIOD"]
[380972855,1755913883600,-400.0,0.00014794,2]
[380972856,1755913883610,-400.0,0.00014794,2]
[380972857,1755913883619,-400.0,0.00014794,2]
[380972858,1755913883629,-400.0,0.00014794,2]
[380972859,1755913883638,-400.0,0.00014794,2]
[380972860,1755913883647,-400.0,0.00014794,2]
[380972861,1755913883657,-400.0,0.00014794,2]
[380972862,1755913883666,-400.0,0.00014794,2]
[380972863,1755913883676,-400.0,0.00014794,2]
[380972864,1755913883685,-400.0,0.00014794,2]
[380972865,1755913883694,-400.0,0.00014794,2]
[380972866,1755913883703,-400.0,0.00014794,2]
[380972867,1755913883712,-400.0,0.00014794,2]
[380972868,1755913883722,-400.0,0.00014794,2]
[380972869,1755913883731,-517.23,0.00014794,2]
[380972870,1755913883899,-593.82,0.00014794,2]
[380972871,1755913883931,-400.0,0.00014794,2]
[380972872,1755913883954,-400.0,0.00014794,2]
[380972873,1755913883964,-400.0,0.00014794,2]
[380972874,1755913883974,-400.0,0.00014794,2]
[380972875,1755913883984,-553.41,0.00014794,2]
[380972876,1755913883994,-400.0,0.00014794,2]
[380972877,1755913884004,-400.0,0.00014794,2]
[380972878,1755913884014,-400.0,0.00014794,2]
[380972879,1755913884024,-250.31964458,0.00014794,2]
[380972880,1755913884035,-611.05,0.00014794,2]
[380972881,1755913884044,-423.01,0.00014794,2]
[380972882,1755913884054,-400.0,0.00014794,2]
[380972883,1755913884065,-400.0,0.00014794,2]
[380972884,1755913884075,-400.0,0.00014794,2]
[380972885,1755913884085,-400.0,0.00014794,2]
[380972886,1755913884095,-400.0,0.00014794,2]
[380972887,1755913884104,-400.0,0.00014794,2]
[380972888,1755913884113,-762.19,0.00014794,2]
[380972889,1755913884124,-400.0,0.00014794,2]
[380972890,1755913884134,-411.93,0.00014794,2]
[380972891,1755913884143,-400.0,0.00014794,2]
[380972892,1755913884153,-400.0,0.00014794,2]
[380972893,1755913884162,-632.91,0.00014794,2]
[380972894,1755913884171,-400.0,0.00014794,2]
[380972895,1755913884181,-544.96,0.00014794,2]
[380972896,1755913884190,-400.0,0.00014794,2]
[380972897,1755913884199,-400.0,0.00014794,2]
[380972898,1755913884209,-400.0,0.00014794,2]
[380972899,1755913884219,-400.0,0.00014794,2]
[380972900,1755913884229,-400.0,0.00014794,2]
[380972901,1755913884239,-400.0,0.00014794,2]
[380972902,1755913884248,-400.0,0.00014794,2]
[380972903,1755913884257,-400.0,0.00014794,2]
[380972904,1755913884266,-400.0,0.00014794,2]
[380972905,1755913884276,-400.0,0.00014794,2]
[380972906,1755913884286,-402.84258866,0.00014794,2]
[380972907,1755913884296,-400.0,0.00014794,2]
[380972908,1755913884305,-400.0,0.00014794,2]
[380972909,1755913884315,-403.26345333,0.00014794,2]
[380972910,1755913884325,-844.69,0.00014794,2]
[380972911,1755913884334,-400.0,0.00014794,2]
[380972912,1755913884344,-400.0,0.00014794,2]
[380972913,1755913884354,-400.0,0.00014794,2]
[380972914,1755913884364,-400.0,0.00014794,2]
[380972915,1755913884373,-400.0,0.00014794,2]
[380972916,1755913884383,-404.17403804,0.00014794,2]
[380972917,1755913884392,-403.19312684,0.00014794,2]
[380972918,1755913884402,-496.47,0.00014794,2]
[380972919,1755913884412,-404.03785426,0.00014794,2]
[380972920,1755913884421,-400.0,0.00014794,2]
[380972921,1755913884430,-720.25,0.00014794,2]
[380972922,1755913884440,-220.64084479,0.00014794,2]
[380972923,1755913884449,-400.0,0.00014794,2]
[380972924,1755913884459,-400.0,0.00014794,2]
[380972925,1755913884468,-400.0,0.00014794,2]
[380972926,1755913884478,-400.0,0.00014794,2]
[380972927,1755913884487,-544.66,0.00014794,2]
[380972928,1755913884496,-400.0,0.00014794,2]
[380972929,1755913884506,-629.0,0.00014794,2]
[380972930,1755913884517,-406.24231498,0.00014794,2]
[380972931,1755913884526,-400.0,0.00014794,2]
[380972932,1755913884536,-412.46,0.00014794,2]
[380972933,1755913884546,-400.0,0.00014794,2]
[380972934,1755913884557,-400.0,0.00014794,2]
[380972935,1755913884567,-400.0,0.00014794,2]
[380972936,1755913884576,-743.06,0.00014794,2]
[380972937,1755913884586,-400.0,0.00014794,2]
[380972938,1755913884595,-410.3067598,0.00014794,2]
[380972939,1755913884605,-400.0,0.00014794,2]
[380972940,1755913884615,-400.0,0.00014794,2]
[380972941,1755913884625,-385.53779386,0.00014794,2]
[380972942,1755913884635,-400.0,0.00014794,2]
[380972943,1755913884644,-400.0,0.00014794,2]
[380972944,1755913884654,-738.74,0.00014794,2]
[380972945,1755913884664,-400.0,0.00014794,2]
[380972946,1755913884673,-400.0,0.00014794,2]
[380972947,1755913884682,-400.0,0.00014794,2]
[380972948,1755913884692,-404.00622501,0.00014794,2]
[380972949,1755913884701,-400.0,0.00014794,2]
[380972950,1755913884711,-400.0,0.00014794,2]
[380972951,1755913884720,-400.0,0.00014794,2]
[380972952,1755913884729,-400.0,0.00014794,2]
[380972953,1755913884739,-771.86,0.00014794,2]
[380972954,1755913884748,-400.0,0.00014794,2]
[380972955,1755913884758,-400.0,0.00014794,2]
[380972956,1755913884767,-403.48013587,0.00014794,2]
[380972957,1755913884777,-400.0,0.00014794,2]
[380972958,1755913884786,-405.37219015,0.00014794,2]
[380972959,1755913884796,-402.51147972,0.00014794,2]
[380972960,1755913884805,-400.0,0.00014794,2]
[380972961,1755913884814,-400.0,0.00014794,2]
[380972962,1755913884824,-400.0,0.00014794,2]
[380972963,1755913884834,-721.01,0.00014794,2]
[380972964,1755913884843,-471.12351507,0.00014794,2]
[380972965,1755913884853,-400.0,0.00014794,2]
[380972966,1755913884863,-403.70159051,0.00014794,2]
[380972967,1755913884872,-455.54,0.00014794,2]
[380972968,1755913884881,-400.0,0.00014794,2]
[380972969,1755913884891,-400.0,0.00014794,2]
[380972970,1755913884902,-400.0,0.00014794,2]
[380972971,1755913884913,-992.24,0.00014794,2]
[380972972,1755913884923,-400.0,0.00014794,2]
[380972973,1755913884933,-400.0,0.00014794,2]
[380972974,1755913884943,-400.0,0.00014794,2]
[380972975,1755913884954,-400.0,0.00014794,2]
[380972976,1755913884964,-400.0,0.00014794,2]
[380972977,1755913884974,-531.41,0.00014794,2]
[380972978,1755913884985,-400.0,0.00014794,2]
[380972979,1755913884995,-422.75,0.00014794,2]
[380972980,1755913885006,-859.01,0.00014794,2]
[380972981,1755913885016,-400.0,0.00014794,2]
[380972982,1755913885026,-390.67246064,0.00014794,2]
[380972983,1755913885037,-418.62102157,0.00014794,2]
[380972984,1755913885047,-400.0,0.00014794,2]
[380972985,1755913885059,-445.23,0.00014794,2]
[380972986,1755913885069,-400.0,0.00014794,2]
[380972987,1755913885079,-406.61611976,0.00014794,2]
[380972988,1755913885089,-404.59885348,0.00014794,2]
[380972989,1755913885100,-400.0,0.00014794,2]
[380972990,1755913885109,-401.36,0.00014794,2]
[380972991,1755913885120,-400.0,0.00014794,2]
[380972992,1755913885130,-688.63,0.00014794,2]
[380972993,1755913885140,-410.24131141,0.00014794,2]
[380972994,1755913885150,-400.0,0.00014794,2]
[380972995,1755913885160,-400.0,0.00014794,2]
[380972996,1755913885170,-400.0,0.00014794,2]
[380972997,1755913885181,-407.09705742,0.00014794,2]
[380972998,1755913885191,-530.94,0.00014794,2]
[380972999,1755913885200,-400.0,0.00014794,2]
[380973000,1755913885210,-400.0,0.00014794,2]
[380973001,1755913885220,-546.21,0.00014794,2]
[380973002,1755913885230,-400.0,0.00014794,2]
[380973003,1755913885240,-400.0,0.00014794,2]
[380973004,1755913885250,-400.0,0.00014794,2]
[380973005,1755913885260,-200.58422375,0.00014794,2]
[380973006,1755913885269,-790.02,0.00014794,2]
[380973007,1755913885280,-400.0,0.00014794,2]
[380973008,1755913885290,-403.9461991,0.00014794,2]
[380973009,1755913885299,-400.0,0.00014794,2]
[380973010,1755913885310,-400.0,0.00014794,2]
[380973011,1755913885319,-724.94,0.00014794,2]
[380973012,1755913885329,-400.0,0.00014794,2]
[380973013,1755913885340,-400.0,0.00014794,2]
[380973014,1755913885349,-619.77,0.00014794,2]
[380973015,1755913885359,-407.2576648,0.00014794,2]
[380973016,1755913885370,-400.0,0.00014794,2]
[380973017,1755913885379,-403.5242975,0.00014794,2]
[380973018,1755913885389,-400.0,0.00014794,2]
[380973019,1755913885399,-400.0,0.00014794,2]
[380973020,1755913885408,-449.47,0.00014794,2]
[380973021,1755913885418,-404.78860579,0.00014794,2]
[380973022,1755913885428,-400.0,0.00014794,2]
[380973023,1755913885437,-400.0,0.00014794,2]
[380973024,1755913885447,-606.43,0.00014794,2]
[380973025,1755913885457,-400.0,0.00014794,2]
[380973026,1755913885466,-400.0,0.00014794,2]
[380973027,1755913885476,-817.92,0.00014794,2]
[380973028,1755913885486,-400.0,0.00014794,2]
[380973029,1755913885495,-476.75211886,0.00014794,2]
[380973030,1755913885505,-404.23,0.00014794,2]
[380973031,1755913885515,-823.38,0.00014794,2]
[380973032,1755913885525,-455.97805799,0.00014794,2]
[380973033,1755913885534,-871.5,0.00014794,2]
[380973034,1755913885544,-400.0,0.00014794,2]
[380973035,1755913885554,-400.0,0.00014794,2]
[380973036,1755913885566,-400.0,0.00014794,2]
[380973037,1755913885576,-2930.54,0.00014794,2]
[380973038,1755913885586,-400.0,0.00014794,2]
[380973039,1755913885596,-400.0,0.00014794,2]
[380973040,1755913885607,-400.0,0.00014794,2]
[380973041,1755913885617,-400.0,0.00014794,2]
[380973042,1755913885627,-400.0,0.00014794,2]
[380973043,1755913885637,-400.0,0.00014794,2]
[380973044,1755913885647,-400.0,0.00014794,2]
[380973045,1755913885657,-400.0,0.00014794,2]
[380973046,1755913885667,-400.0,0.00014794,2]
[380973047,1755913885677,-400.0,0.00014794,2]
[380973048,1755913885686,-467.49,0.00014794,2]
[380973049,1755913885696,-400.0,0.00014794,2]
[380973050,1755913885706,-400.0,0.00014794,2]
[380973051,1755913885716,-400.0,0.00014794,2]
[380973052,1755913885726,-400.0,0.00014794,2]
[380973053,1755913885736,-400.0,0.00014794,2]
[380973054,1755913885746,-400.0,0.00014794,2]
[380973055,1755913885756,-400.0,0.00014794,2]
[380973056,1755913885766,-400.0,0.00014794,2]
[380973057,1755913885776,-400.0,0.00014794,2]
[380973058,1755913885785,-400.0,0.00014794,2]
[380973059,1755913885794,-400.0,0.00014794,2]
[380973060,1755913885804,-400.0,0.00014794,2]
[380973061,1755913885816,-400.0,0.00014794,2]
[380973062,1755913885826,-400.0,0.00014794,2]
[380973063,1755913885835,-530.18,0.00014794,2]
[380973064,1755913885845,-467.98,0.00014794,2]
[380973065,1755913885854,-402.93017273,0.00014794,2]
[380973066,1755913885864,-490.96,0.00014794,2]
[380973067,1755913885873,-400.0,0.00014794,2]
[380973068,1755913885884,-413.06,0.00014794,2]
[380973069,1755913885893,-406.92386758,0.00014794,2]
[380973070,1755913885903,-400.0,0.00014794,2]
[380973071,1755913885918,-400.0,0.00014794,2]
[380973072,1755913885927,-400.0,0.00014794,2]
[380973073,1755913885937,-495.67,0.00014794,2]
[380973074,1755913885947,-400.0,0.00014794,2]
[380973075,1755913885957,-400.0,0.00014794,2]
[380973076,1755913885967,-419.22,0.00014794,2]
[380973077,1755913885977,-400.0,0.00014794,2]
[380973078,1755913885988,-400.0,0.00014794,2]
[380973079,1755913885998,-400.0,0.00014794,2]
[380973080,1755913886008,-400.0,0.00014794,2]
[380973081,1755913886017,-400.0,0.00014794,2]
[380973082,1755913886027,-400.0,0.00014794,2]
[380973083,1755913886036,-400.0,0.00014794,2]
[380973084,1755913886046,-400.0,0.00014794,2]
[380973085,1755913886055,-607.7,0.00014794,2]
[380973086,1755913886065,-400.0,0.00014794,2]
[380973087,1755913886075,-400.0,0.00014794,2]
[380973088,1755913886084,-400.0,0.00014794,2]
[380973089,1755913886093,-429.67,0.00014794,2]
[380973090,1755913886103,-400.0,0.00014794,2]
[380973091,1755913886113,-400.0,0.00014794,2]
[380973092,1755913886122,-400.0,0.00014794,2]
[380973093,1755913886132,-402.46581226,0.00014794,2]
[380973094,1755913886141,-407.26623513,0.00014794,2]
[380973095,1755913886150,-400.0,0.00014794,2]
[380973096,1755913886160,-400.0,0.00014794,2]
[380973097,1755913886169,-408.84692898,0.00014794,2]
[380973098,1755913886179,-400.0,0.00014794,2]
[380973099,1755913886188,-589.87,0.00014794,2]
[380973100,1755913886198,-400.0,0.00014794,2]
[380973101,1755913886207,-400.0,0.00014794,2]
[380973102,1755913886218,-400.0,0.00014794,2]
[380973103,1755913886228,-1099.03,0.00014794,2]
[380973104,1755913886238,-400.0,0.00014794,2]
[380973105,1755913886248,-403.71897343,0.00014794,2]
[380973106,1755913886257,-405.5083395,0.00014794,2]
[380973107,1755913886267,-400.0,0.00014794,2]
[380973108,1755913886276,-400.0,0.00014794,2]
[380973109,1755913886286,-400.0,0.00014794,2]
[380973110,1755913886295,-409.85536682,0.00014794,2]
[380973111,1755913886305,-400.0,0.00014794,2]
[380973112,1755913886315,-400.0,0.00014794,2]
[380973113,1755913886325,-400.0,0.00014794,2]
[380973114,1755913886335,-400.0,0.00014794,2]
[380973115,1755913886346,-400.0,0.00014794,2]
[380973116,1755913886356,-400.0,0.00014794,2]
[380973117,1755913886365,-465.7,0.00014794,2]
[380973118,1755913886375,-400.0,0.00014794,2]
[380973119,1755913886385,-400.0,0.00014794,2]
[380973120,1755913886396,-565.88,0.00014794,2]
[380973121,1755913886406,-400.0,0.00014794,2]
[380973122,1755913886416,-400.0,0.00014794,2]
[380973123,1755913886426,-400.0,0.00014794,2]
[380973124,1755913886435,-400.0,0.00014794,2]
[380973125,1755913886445,-400.0,0.00014794,2]
[380973126,1755913886455,-400.0,0.00014794,2]
[380973127,1755913886536,-400.0,0.00014794,2]
[380973128,1755913886546,-400.0,0.00014794,2]
[380973129,1755913886559,-400.0,0.00014794,2]
[380973130,1755913886568,-400.0,0.00014794,2]
[380973131,1755913886577,-620.85,0.00014794,2]
[380973132,1755913886587,-400.0,0.00014794,2]
[380973133,1755913886596,-400.0,0.00014794,2]
[380973134,1755913886606,-400.0,0.00014794,2]
[380973135,1755913886615,-400.0,0.00014794,2]
[380973136,1755913886624,-400.0,0.00014794,2]
[380973137,1755913886634,-944.89,0.00014794,2]
[380973138,1755913886643,-400.0,0.00014794,2]
[380973139,1755913886653,-400.0,0.00014794,2]
[380973140,1755913886663,-405.09889331,0.00014794,2]
[380973141,1755913886673,-495.48297978,0.00014794,2]
[380973142,1755913886683,-412.555292,0.00014794,2]
[380973143,1755913886693,-400.0,0.00014794,2]
[380973144,1755913886702,-400.0,0.00014794,2]
[380973145,1755913886711,-400.0,0.00014794,2]
[380973146,1755913886720,-400.0,0.00014794,2]
[380973147,1755913886730,-400.0,0.00014794,2]
[380973148,1755913886739,-400.0,0.00014794,2]
[380973149,1755913886751,-400.0,0.00014794,2]
[380973150,1755913886760,-400.0,0.00014794,2]
[380973151,1755913886770,-151.07205188,0.00014794,2]
[380973152,1755913886780,-400.0,0.00014794,2]
[380973153,1755913886789,-400.0,0.00014794,2]
[380973154,1755913886799,-400.0,0.00014794,2]
[380973155,1755913886808,-400.0,0.00014794,2]
[380973156,1755913886818,-400.0,0.00014794,2]
[380973157,1755913886828,-400.0,0.00014794,2]
[380973158,1755913886838,-400.0,0.00014794,2]
[380973159,1755913886847,-400.0,0.00014794,2]
[380973160,1755913886857,-400.55031406,0.00014794,2]
[380973161,1755913886867,-400.0,0.00014794,2]
[380973162,1755913886878,-400.0,0.00014794,2]
[380973163,1755913886888,-400.0,0.00014794,2]
[380973164,1755913886897,-400.0,0.00014794,2]
[380973165,1755913886910,-400.0,0.00014794,2]
[380973166,1755913886920,-400.0,0.00014794,2]
[380973167,1755913886929,-400.0,0.00014794,2]
[380973168,1755913886939,-400.0,0.00014794,2]
[380973169,1755913886950,-400.0,0.00014794,2]
[380973170,1755913886959,-400.0,0.00014794,2]
[380973171,1755913886968,-400.0,0.00014794,2]
[380973172,1755913886977,-400.0,0.00014794,2]
[380973173,1755913886987,-400.0,0.00014794,2]
[380973174,1755913886996,-431.13,0.00014794,2]
[380973175,1755913887007,-400.0,0.00014794,2]
[380973176,1755913887016,-968.0,0.00014794,2]
[380973177,1755913887025,-400.0,0.00014794,2]
[380973178,1755913887035,-400.0,0.00014794,2]
[380973179,1755913887045,-702.52,0.00014794,2]
[380973180,1755913887054,-629.14,0.00014794,2]
[380973181,1755913887064,-403.80744621,0.00014794,2]
[380973182,1755913887073,-402.86704499,0.00014794,2]
[380973183,1755913887082,-400.0,0.00014794,2]
[380973184,1755913887092,-400.0,0.00014794,2]
[380973185,1755913887103,-400.0,0.00014794,2]
[380973186,1755913887113,-704.82,0.00014794,2]
[380973187,1755913887122,-400.0,0.00014794,2]
[380973188,1755913887132,-400.0,0.00014794,2]
[380973189,1755913887141,-441.9,0.00014794,2]
[380973190,1755913887151,-400.0,0.00014794,2]
[380973191,1755913887160,-426.57,0.00014794,2]
[380973192,1755913887169,-400.0,0.00014794,2]
[380973193,1755913887178,-400.0,0.00014794,2]
[380973194,1755913887187,-400.0,0.00014794,2]
[380973195,1755913887197,-400.0,0.00014794,2]
[380973196,1755913887207,-1097.09,0.00014794,2]
[380973197,1755913887216,-400.0,0.00014794,2]
[380973198,1755913887225,-151.0,0.00014794,2]
[380973199,1755913887235,-400.0,0.00014794,2]
[380973200,1755913887244,-400.0,0.00014794,2]
[380973201,1755913887253,-400.0,0.00014794,2]
[380973202,1755913887262,-400.0,0.00014794,2]
[380973203,1755913887272,-400.0,0.00014794,2]
[380973204,1755913887281,-400.0,0.00014794,2]
[380973205,1755913887290,-400.0,0.00014794,2]
[380973206,1755913887299,-400.0,0.00014794,2]
[380973207,1755913887311,-400.0,0.00014794,2]
[380973208,1755913887323,-400.0,0.00014794,2]
[380973209,1755913887333,-400.0,0.00014794,2]
[380973210,1755913887342,-400.0,0.00014794,2]
[380973211,1755913887351,-549.15,0.00014794,2]
[380973212,1755913887361,-400.0,0.00014794,2]
[380973213,1755913887370,-174.409868,0.00014794,2]
[380973214,1755913887380,-724.1,0.00014794,2]
[380973215,1755913887389,-404.57580992,0.00014794,2]
[380973216,1755913887399,-400.0,0.00014794,2]
[380973217,1755913887409,-614.27,0.00014794,2]
[380973218,1755913887418,-400.0,0.00014794,2]
[380973219,1755913887427,-400.0,0.00014794,2]
[380973220,1755913887437,-491.32776509,0.00014794,2]
[380973221,1755913887447,-400.0,0.00014794,2]
[380973222,1755913887457,-400.0,0.00014794,2]
[380973223,1755913887466,-409.09709296,0.00014794,2]
[380973224,1755913887476,-152.220462,0.00014794,2]
[380973225,1755913887485,-400.0,0.00014794,2]
[380973226,1755913887495,-537.14,0.00014794,2]
[380973227,1755913887504,-523.22,0.00014794,2]
[380973228,1755913887514,-400.0,0.00014794,2]
[380973229,1755913887524,-400.0,0.00014794,2]
[380973230,1755913887534,-400.0,0.00014794,2]
[380973231,1755913887543,-400.0,0.00014794,2]
[380973232,1755913887555,-1689.58,0.00014794,2]
[380973233,1755913887570,-400.0,0.00014794,2]
[380973234,1755913887579,-400.0,0.00014794,2]
[380973235,1755913887588,-510.2,0.00014794,2]
[380973236,1755913887597,-400.0,0.00014794,2]
[380973237,1755913887606,-482.98778949,0.00014794,2]
[380973238,1755913887615,-400.0,0.00014794,2]
[380973239,1755913887625,-400.0,0.00014794,2]
[380973240,1755913887634,-400.0,0.00014794,2]
[380973241,1755913887643,-400.0,0.00014794,2]
[380973242,1755913887652,-400.0,0.00014794,2]
[380973243,1755913887661,-400.0,0.00014794,2]
[380973244,1755913887671,-400.0,0.00014794,2]
[380973245,1755913887680,-479.84395836,0.00014794,2]
[380973246,1755913887689,-400.0,0.00014794,2]
[380973247,1755913887698,-400.0,0.00014794,2]
[380973248,1755913887707,-400.0,0.00014794,2]
[380973249,1755913887716,-402.08325303,0.00014794,2]
[380973250,1755913887725,-400.0,0.00014794,2]
[380973251,1755913887736,-1212.5,0.00014794,2]
[380973252,1755913887745,-400.0,0.00014794,2]
[380973253,1755913887754,-403.7004098,0.00014794,2]
[380973254,1755913887763,-1204.15,0.00014794,2]
[380973255,1755913887772,-400.0,0.00014794,2]
[380973256,1755913887782,-400.0,0.00014794,2]
[380973257,1755913887791,-404.62665237,0.00014794,2]
[380973258,1755913887799,-400.0,0.00014794,2]
[380973259,1755913887810,-400.0,0.00014794,2]
[380973260,1755913887819,-400.0,0.00014794,2]
[380973261,1755913887828,-400.0,0.00014794,2]
[380973262,1755913887837,-400.0,0.00014794,2]
[380973263,1755913887846,-165.896306,0.00014794,2]
[380973264,1755913887855,-400.0,0.00014794,2]
[380973265,1755913887864,-400.0,0.00014794,2]
[380973266,1755913887873,-400.0,0.00014794,2]
[380973267,1755913887882,-404.59895089,0.00014794,2]
[380973268,1755913887892,-400.0,0.00014794,2]
[380973269,1755913887901,-772.57,0.00014794,2]
[380973270,1755913887913,-400.0,0.00014794,2]
[380973271,1755913887923,-400.0,0.00014794,2]
[380973272,1755913887932,-400.0,0.00014794,2]
[380973273,1755913887941,-980.12,0.00014794,2]
[380973274,1755913887951,-883.06,0.00014794,2]
[380973275,1755913887960,-400.0,0.00014794,2]
[380973276,1755913887970,-632.61,0.00014794,2]
[380973277,1755913887979,-400.0,0.00014794,2]
[380973278,1755913887988,-151.0,0.00014794,2]
[380973279,1755913887997,-400.0,0.00014794,2]
[380973280,1755913888007,-400.0,0.00014794,2]
[380973281,1755913888016,-400.0,0.00014794,2]
[380973282,1755913888026,-540.01289296,0.00014794,2]
[380973283,1755913888035,-400.0,0.00014794,2]
[380973284,1755913888045,-405.78,0.00014794,2]
[380973285,1755913888054,-400.0,0.00014794,2]
[380973286,1755913888065,-400.0,0.00014794,2]
[380973287,1755913888074,-400.0,0.00014794,2]
[380973288,1755913888083,-404.35,0.00014794,2]
[380973289,1755913888092,-400.0,0.00014794,2]
[380973290,1755913888101,-404.50081955,0.00014794,2]
[380973291,1755913888111,-400.0,0.00014794,2]
[380973292,1755913888121,-400.0,0.00014794,2]
[380973293,1755913888131,-400.0,0.00014794,2]
[380973294,1755913888141,-151.0,0.00014794,2]
[380973295,1755913888151,-400.0,0.00014794,2]
[380973296,1755913888160,-227.242043,0.00014794,2]
[380973297,1755913888169,-400.0,0.00014794,2]
[380973298,1755913888179,-400.0,0.00014794,2]
[380973299,1755913888199,-400.0,0.00014794,2]
[380973300,1755913888209,-151.0,0.00014794,2]
[380973301,1755913888218,-400.0,0.00014794,2]
[380973302,1755913888229,-634.23,0.00014794,2]
[380973303,1755913888238,-400.0,0.00014794,2]
[380973304,1755913888247,-400.0,0.00014794,2]
[380973305,1755913888257,-425.4,0.00014794,2]
[380973306,1755913888266,-400.0,0.00014794,2]
[380973307,1755913888275,-400.0,0.00014794,2]
[380973308,1755913888284,-400.0,0.00014794,2]
[380973309,1755913888293,-400.0,0.00014794,2]
[380973310,1755913888304,-400.0,0.00014794,2]
[380973311,1755913888316,-152.277605,0.00014794,2]
[380973312,1755913888325,-833.43,0.00014794,2]
[380973313,1755913888334,-400.0,0.00014794,2]
[380973314,1755913888343,-151.0,0.00014794,2]
[380973315,1755913888352,-400.0,0.00014794,2]
[380973316,1755913888361,-400.0,0.00014794,2]
[380973317,1755913888370,-400.0,0.00014794,2]
[380973318,1755913888379,-400.0,0.00014794,2]
[380973319,1755913888388,-151.0,0.00014794,2]
[380973320,1755913888397,-400.0,0.00014794,2]
[380973321,1755913888407,-400.0,0.00014794,2]
[380973322,1755913888416,-616.89,0.00014794,2]
[380973323,1755913888426,-400.0,0.00014794,2]
[380973324,1755913888435,-400.0,0.00014794,2]
[380973325,1755913888444,-400.0,0.00014794,2]
[380973326,1755913888454,-314.27443511,0.00014794,2]
[380973327,1755913888463,-400.0,0.00014794,2]
[380973328,1755913888473,-400.0,0.00014794,2]
[380973329,1755913888482,-400.0,0.00014794,2]
[380973330,1755913888491,-869.7,0.00014794,2]
[380973331,1755913888499,-400.0,0.00014794,2]
[380973332,1755913888508,-400.0,0.00014794,2]
[380973333,1755913888517,-400.0,0.00014794,2]
[380973334,1755913888527,-400.0,0.00014794,2]
[380973335,1755913888537,-489.18,0.00014794,2]
[380973336,1755913888546,-209.08810717,0.00014794,2]
[380973337,1755913888555,-400.0,0.00014794,2]
[380973338,1755913888565,-400.0,0.00014794,2]
[380973339,1755913888574,-400.0,0.00014794,2]
[380973340,1755913888583,-400.0,0.00014794,2]
[380973341,1755913888593,-400.0,0.00014794,2]
[380973342,1755913888602,-711.12,0.00014794,2]
[380973343,1755913888612,-400.0,0.00014794,2]
[380973344,1755913888622,-400.0,0.00014794,2]
[380973345,1755913888632,-457.25,0.00014794,2]
[380973346,1755913888641,-400.0,0.00014794,2]
[380973347,1755913888651,-637.03,0.00014794,2]
[380973348,1755913888661,-400.0,0.00014794,2]
[380973349,1755913888671,-400.0,0.00014794,2]
[380973350,1755913888680,-278.7157109,0.00014794,2]
[380973351,1755913888689,-400.0,0.00014794,2]
[380973352,1755913888698,-400.0,0.00014794,2]
[380973353,1755913888708,-685.38,0.00014794,2]
[380973354,1755913888717,-400.0,0.00014794,2]